bitfinex-derivatives/quotes_SOLF0:USTF0_20250716
["timestamp","ask_amount","ask_price","bid_price","bid_amount"]
[1752657782505,6.80819885,167.43,167.33,6.80819885]
[1752657782706,5.9744,167.38,167.33,6.80819885]
[1752657782900,6.80819885,167.43,167.33,6.80819885]
[1752657783506,5.9743,167.38,167.33,6.80819885]
[1752657784207,5.9743,167.38,167.31,5.9763]
[1752657784208,6.80819885,167.45,167.35,6.80819885]
[1752657784398,6.80819885,167.45,167.37,6.80819885]
[1752657785609,5.9737,167.4,167.37,6.80819885]
[1752657785910,6.25177432,167.47,167.37,6.80819885]
[1752657786110,6.80819885,167.46,167.37,6.80819885]
[1752657786706,5.9725,167.43,167.37,6.80819885]
[1752657786903,5.9725,167.43,167.39,6.80819885]
[1752657787108,6.25177432,167.47,167.39,6.80819885]
[1752657787310,5.9728,167.42,167.39,6.80819885]
[1752657787801,6.25177432,167.47,167.35,516.42]
[1752657788315,5.9717,167.45,167.42,6.80819885]
[1752657788610,6.25177432,167.47,167.42,6.80819885]
[1752657789006,6.25177432,167.47,167.35,516.42]
[1752657789206,6.25177432,167.47,167.42,6.80819885]
[1752657789509,6.25177432,167.47,167.41,5.973]
[1752657789712,6.25177432,167.47,167.45,6.80819885]
[1752657790102,6.25177432,167.47,167.35,516.42]
[1752657790313,6.25177432,167.47,167.42,6.80819885]
[1752657790812,5.9716,167.45,167.42,6.80819885]
[1752657791611,5.9713,167.46,167.42,6.80819885]
[1752657791810,6.25177432,167.47,167.44,6.80819885]
[1752657792108,6.25177432,167.47,167.4,6.80819885]
[1752657792109,6.25177432,167.47,167.46,6.80819885]
[1752657792504,6.25177432,167.47,167.44,6.80819885]
[1752657793011,6.25177432,167.47,167.36,176.74]
[1752657793012,6.25177432,167.47,167.43,6.80819885]
[1752657793407,5.9715,167.46,167.43,6.80819885]
[1752657793808,6.25177432,167.47,167.43,6.80819885]
[1752657795412,12.22287432,167.47,167.43,6.80819885]
[1752657795812,12.22287432,167.47,167.35,516.42]
[1752657795813,12.22287432,167.47,167.44,6.80819885]
[1752657796012,5.9714,167.46,167.44,6.80819885]
[1752657796509,6.25177432,167.47,167.42,6.80819885]
[1752657796813,6.25177432,167.47,167.4,6.80819885]
[1752657797010,5.9722,167.44,167.4,6.80819885]
[1752657797915,5.9717,167.45,167.4,6.80819885]
[1752657798119,6.25177432,167.47,167.4,6.80819885]
[1752657798416,5.9718,167.45,167.4,6.80819885]
[1752657799317,6.25177432,167.47,167.4,6.80819885]
[1752657800017,13.05997317,167.47,167.35,516.42]
[1752657800218,13.05997317,167.47,167.37,6.80819885]
[1752657800713,13.05997317,167.47,167.35,522.395]
[1752657800920,4.08522769,167.44,167.36,4.08522769]
[1752657801920,5.9739,167.39,167.36,4.08522769]
[1752657802414,5.9754,167.35,167.32,4.08522769]
[1752657802719,4.08522769,167.4,167.32,4.08522769]
[1752657802914,5.975,167.36,167.31,6.81210712]
[1752657803115,6.81210712,167.41,167.31,6.81210712]
[1752657803609,24.22177432,167.47,167.33,6.81210712]
[1752657803815,6.81210712,167.43,167.33,6.81210712]
[1752657804014,5.9736,167.4,167.35,6.81210712]
[1752657805320,5.9736,167.4,167.35,12.78710712]
[1752657806016,6.81210712,167.41,167.31,6.81210712]
[1752657806217,6.81210712,167.41,167.27,516.18]
[1752657806412,5.9755,167.35,167.3,6.81210712]
[1752657810816,5.9755,167.35,167.3,12.78900712]
[1752657811415,11.9435,167.45,167.34,6.81210712]
[1752657811719,6.81210712,167.44,167.34,6.81210712]
[1752657811915,6.81210712,167.44,167.35,6.81210712]
[1752657812510,6.81210712,167.46,167.35,6.81210712]
[1752657812918,6.81210712,167.46,167.3,6.81210712]
[1752657813119,6.81210712,167.46,167.35,6.81210712]
[1752657813518,5.9733,167.41,167.35,12.78710712]
[1752657813720,6.81210712,167.46,167.35,12.78710712]
[1752657814113,5.9736,167.4,167.35,6.81210712]
[1752657814519,6.81210712,167.42,167.32,6.81210712]
[1752657815623,6.81210712,167.4,167.3,6.81210712]
[1752657815919,5.9751,167.36,167.3,12.78900712]
[1752657816114,6.81210712,167.4,167.3,6.81210712]
[1752657817118,5.9754,167.35,167.3,6.81210712]
[1752657818018,5.9756,167.34,167.3,6.81210712]
[1752657819921,5.9753,167.35,167.3,12.78900712]
[1752657821224,5.9753,167.35,167.3,6.81210712]
[1752657822723,5.9756,167.34,167.3,6.81210712]
[1752657822925,6.81210712,167.38,167.28,6.81210712]
[1752657823426,5.9763,167.32,167.28,6.81210712]
[1752657823828,6.81210712,167.38,167.28,6.81210712]
[1752657824626,6.81210712,167.38,167.29,5.9771]
[1752657825327,6.81210712,167.38,167.27,516.18]
[1752657825526,6.81210712,167.4,167.29,6.81210712]
[1752657825725,5.9752,167.36,167.29,6.81210712]
[1752657825926,6.81210712,167.4,167.31,6.81210712]
[1752657826426,5.9752,167.35,167.31,6.81210712]
[1752657827332,6.81210712,167.38,167.28,6.81210712]
[1752657827527,6.81210712,167.36,167.28,6.81210712]
[1752657828225,5.9766,167.31,167.28,6.81210712]
[1752657829233,5.9763,167.32,167.28,6.81210712]
[1752657829732,23.55888882,167.38,167.28,6.81210712]
[1752657830125,6.81210712,167.36,167.28,6.81210712]
[1752657830529,5.9768,167.31,167.28,6.81210712]
[1752657831430,6.81210712,167.36,167.26,6.81210712]
[1752657832135,5.9768,167.31,167.26,6.81210712]
[1752657832335,6.81210712,167.36,167.26,6.81210712]
[1752657832835,5.9768,167.31,167.26,12.79040712]
[1752657834637,5.977,167.3,167.26,6.81210712]
[1752657834939,5.977,167.3,167.27,4.08915798]
[1752657835640,4.08915798,167.35,167.27,4.08915798]
[1752657836237,5.9769,167.31,167.27,4.08915798]
[1752657836440,4.08915798,167.35,167.27,4.08915798]
[1752657837033,4.08915798,167.33,167.27,4.08915798]
[1752657837539,5.9775,167.29,167.27,4.08915798]
[1752657838238,5.9775,167.29,167.25,10.06775798]
[1752657838437,4.08915798,167.33,167.25,4.08915798]
[1752657839142,5.9775,167.29,167.25,4.08915798]
[1752657839842,5.9778,167.28,167.25,4.08915798]
[1752657841341,4.08915798,167.31,167.19,516.42]
[1752657841539,4.08915798,167.27,167.12,4.08915798]
[1752657841741,16.7467817,167.2,167.14,4.08915798]
[1752657841938,16.7467817,167.2,167.11,516.52]
[1752657841939,5.9823,167.15,167.12,4.08915798]
[1752657842638,4.08915798,167.19,167.04,4.08915798]
[1752657842843,4.08915798,167.19,167.05,175.7]
[1752657842844,20.83593968,167.19,167.05,175.7]
[1752657843044,5.9843,167.1,167.07,6.82944948]
[1752657843235,5.9843,167.1,167.05,5.9858]
[1752657843236,17.97,167.19,167.04,6.82944948]
[1752657843433,6.82944948,167.14,167.04,6.82944948]
[1752657843943,16.7467817,167.21,167.03,516.52]
[1752657843944,6.82944948,167.17,167.06,6.82944948]
[1752657844143,6.82944948,167.15,167.06,6.82944948]
[1752657844352,6.82944948,167.15,167.03,516.52]
[1752657844353,6.82944948,167.15,167.04,6.82944948]
[1752657844643,6.82944948,167.13,167.03,6.82944948]
[1752657845035,6.82944948,167.13,167.02,176.0]
[1752657845240,6.82944948,167.13,167.03,6.82944948]
[1752657845436,6.82944948,167.14,167.03,6.82944948]
[1752657845636,6.82944948,167.14,167.05,6.82944948]
[1752657846445,6.82944948,167.16,167.02,176.0]
[1752657846742,29.9018,167.19,167.02,6.82944948]
[1752657846743,6.82944948,167.12,167.02,6.82944948]
[1752657846948,6.82944948,167.12,167.0,339.8106611]
[1752657847244,6.82944948,167.1,167.0,176.12]
[1752657848949,5.9861,167.05,166.98,5.9882]
[1752657849548,6.82944948,167.06,166.95,516.64]
[1752657849846,24.76944948,167.1,166.87,516.98]
[1752657850046,24.76944948,167.1,166.95,5.9894]
[1752657850047,5.9873,167.02,166.95,5.9894]
[1752657850242,24.76944948,167.1,166.91,176.48]
[1752657850549,5.9858,167.06,167.0,5.9876]
[1752657850747,516.82,167.16,167.02,6.82944948]
[1752657851054,5.9831,167.13,167.07,12.81454948]
[1752657851345,6.82944948,167.16,167.02,176.7]
[1752657851541,6.82944948,167.14,167.05,6.82944948]
[1752657851849,5.984,167.11,167.05,12.81494948]
[1752657852239,5.984,167.11,167.06,5.9854]
[1752657852439,24.76944948,167.2,167.02,176.7]
[1752657852440,516.98,167.24,167.07,6.82944948]
[1752657852642,6.82944948,167.17,167.07,6.82944948]
[1752657853238,6.82944948,167.17,167.02,176.7]
[1752657853438,6.82944948,167.15,167.07,6.82944948]
[1752657853852,5.9837,167.12,167.07,6.82944948]
[1752657854064,6.82944948,167.15,167.05,6.82944948]
[1752657854444,6.82944948,167.15,166.81,352.0]
[1752657854445,6.82944948,167.1,166.86,1.0414952]
[1752657854651,24.76944948,167.1,166.95,6.82944948]
[1752657854852,6.82944948,167.05,166.95,6.82944948]
[1752657855054,5.9874,167.01,166.94,5.9896]
[1752657855550,5.987,167.02,166.95,5.9894]
[1752657855946,6.82944948,167.1,166.94,6.82944948]
[1752657856157,6.82944948,167.07,166.96,6.82944948]
[1752657856458,6.82944948,167.08,166.92,517.12]
[1752657856662,6.82944948,167.06,166.97,5.9887]
[1752657856949,517.1,167.14,166.98,6.82944948]
[1752657857153,517.1,167.14,167.0,6.82944948]
[1752657857154,6.82944948,167.1,167.0,6.82944948]
[1752657857758,6.82944948,167.04,166.94,167.69194182]
[1752657858359,5.9879,167.0,166.94,173.68164182]
[1752657858551,6.82944948,167.02,166.94,173.68164182]
[1752657858757,6.82944948,167.02,166.93,178.7]
[1752657859055,6.82944948,166.99,166.93,178.7]
[1752657859464,5.9894,166.96,166.93,178.7]
[1752657859760,6.82944948,167.0,166.91,6.82944948]
[1752657860663,17.94,167.08,166.91,12.82024948]
[1752657860864,6.82944948,167.01,166.91,12.82024948]
[1752657861659,5.9886,166.98,166.91,6.82944948]
[1752657861958,6.82944948,167.03,166.93,6.82944948]
[1752657862158,6.82944948,167.03,166.94,12.81904948]
[1752657862354,6.82944948,167.03,166.88,178.94]
[1752657862657,6.82944948,167.03,166.93,12.81934948]
[1752657863459,17.94,167.08,166.88,178.94]
[1752657863663,5.9887,166.98,166.88,178.94]
[1752657863964,17.94,167.08,166.92,6.82944948]
[1752657864165,5.9883,166.99,166.92,6.82944948]
[1752657864859,5.9883,166.99,166.93,5.99]
[1752657865055,5.9883,166.99,166.93,12.81944948]
[1752657865563,5.9883,166.99,166.94,5.9897]
[1752657865760,17.94,167.08,166.93,6.82944948]
[1752657866061,6.82944948,167.04,166.93,6.82944948]
[1752657866362,5.988,167.0,166.94,5.9896]
[1752657866557,5.988,167.0,166.94,12.81904948]
[1752657866962,5.988,166.99,166.93,5.9901]
[1752657867161,6.82944948,167.02,166.93,5.9901]
[1752657867458,5.9887,166.98,166.92,12.81994948]
[1752657867663,6.82944948,167.02,166.91,6.82944948]
[1752657868166,5.9885,166.98,166.92,5.9903]
[1752657868659,6.82944948,167.04,166.95,12.81884948]
[1752657868866,6.82944948,167.04,166.95,6.82944948]
[1752657869165,5.9879,167.0,166.95,12.81884948]
[1752657869373,6.82944948,167.04,166.95,6.82944948]
[1752657869962,5.9879,167.0,166.95,12.81884948]
[1752657870468,6.82944948,167.04,166.95,6.82944948]
[1752657870964,5.9887,166.98,166.92,5.9904]
[1752657871165,5.9887,166.98,166.91,6.82944948]
[1752657871655,5.9887,166.98,166.93,5.99]
[1752657871860,17.94,167.08,166.95,6.82944948]
[1752657872060,6.82944948,167.05,166.95,6.82944948]
[1752657873664,6.82944948,167.05,166.95,12.81884948]
[1752657873665,5.988,167.0,166.95,12.81884948]
[1752657873968,17.94,167.08,166.94,6.82944948]
[1752657874161,5.9879,167.0,166.95,5.9894]
[1752657874362,6.82944948,167.07,166.96,6.82944948]
[1752657874767,6.82944948,167.03,166.94,6.82944948]
[1752657875266,5.9883,166.99,166.94,6.82944948]
[1752657875772,6.82944948,167.03,166.94,6.82944948]
[1752657876066,5.9884,166.98,166.94,6.82944948]
[1752657876971,5.9888,166.97,166.92,5.9905]
[1752657877267,5.9888,166.97,166.93,6.82944948]
[1752657877664,5.9891,166.96,166.91,5.9908]
[1752657877863,5.9891,166.96,166.89,178.66]
[1752657877864,5.9891,166.96,166.93,6.82944948]
[1752657878169,6.82944948,167.01,166.89,178.66]
[1752657878370,6.82944948,166.99,166.9,6.82944948]
[1752657878767,6.82944948,166.99,166.86,1.0414952]
[1752657878961,17.94,167.03,166.89,6.82944948]
[1752657879170,6.82944948,166.97,166.87,6.82944948]
[1752657879570,5.9904,166.93,166.87,6.82944948]
[1752657879868,6.82944948,166.97,166.87,6.82944948]
[1752657880059,5.9904,166.93,166.88,5.992]
[1752657880266,6.82944948,166.97,166.88,5.992]
[1752657880466,6.82944948,166.97,166.88,12.82144948]
[1752657881770,6.82944948,166.97,166.89,5.9916]
[1752657881973,5.99,166.94,166.89,5.9916]
[1752657882271,6.82944948,166.93,166.75,11.993]
[1752657882470,5.9913,166.9,166.85,5.9928]
[1752657882671,5.9913,166.9,166.84,524.00944948]
[1752657882874,5.9913,166.9,166.84,530.00274948]
[1752657883073,5.9916,166.89,166.84,530.00274948]
[1752657883275,6.82944948,166.94,166.84,517.18]
[1752657883472,5.9923,166.88,166.84,517.18]
[1752657883773,17.94,166.95,166.78,6.82944948]
[1752657883974,6.82944948,166.93,166.82,6.82944948]
[1752657884171,5.9918,166.89,166.84,6.82944948]
[1752657884672,5.9918,166.89,166.84,5.9932]
[1752657884868,124.0,166.98,166.86,6.82944948]
[1752657885071,6.82944948,166.96,166.8,6.82944948]
[1752657885268,11.9762,166.99,166.78,179.74294662]
[1752657885474,6.82944948,166.99,166.9,6.82944948]
[1752657885669,6.82944948,166.97,166.88,6.82944948]
[1752657886473,6.82944948,166.97,166.88,12.82144948]
[1752657886668,6.82944948,166.97,166.78,13.03374662]
[1752657886972,6.82944948,166.95,166.84,6.82944948]
[1752657887171,6.82944948,166.93,166.79,179.08]
[1752657887371,6.82944948,166.93,166.84,6.82944948]
[1752657887975,5.9924,166.87,166.82,5.9939]
[1752657888176,5.9924,166.87,166.83,6.82944948]
[1752657888974,6.82944948,166.93,166.83,6.82944948]
[1752657888975,5.992,166.88,166.83,6.82944948]
[1752657889170,6.82944948,166.93,166.83,12.82304948]
[1752657889480,5.9933,166.85,166.82,6.82944948]
[1752657889771,6.82944948,166.91,166.8,6.82944948]
[1752657889970,6.82944948,166.93,166.84,6.82944948]
[1752657890474,5.9921,166.88,166.84,6.82944948]
[1752657891770,5.9918,166.89,166.84,6.82944948]
[1752657892075,20.1462143,166.95,166.85,6.82944948]
[1752657892473,5.9915,166.9,166.85,12.82224948]
[1752657892975,20.1462143,166.95,166.81,178.98]
[1752657893172,13.31676482,166.93,166.84,6.82944948]
[1752657893773,13.31676482,166.92,166.81,178.96]
[1752657893977,13.31676482,166.92,166.85,6.82944948]
[1752657894169,5.992,166.88,166.85,6.82944948]
[1752657894969,13.31676482,166.91,166.85,6.82944948]
[1752657895372,13.31676482,166.92,166.87,6.82944948]
[1752657895877,5.9911,166.91,166.87,12.82174948]
[1752657896077,5.9911,166.91,166.87,6.82944948]
[1752657896277,19.30786482,166.91,166.87,6.82944948]
[1752657897179,13.31676482,166.9,166.87,6.82944948]
[1752657898173,13.31676482,166.89,166.87,1.49350174]
[1752657898378,13.31676482,166.88,166.87,1.49350174]
[1752657898878,16.7467817,166.92,166.85,6.82944948]
[1752657899078,13.36274584,166.87,166.85,6.82944948]
[1752657899278,13.36274584,166.86,166.85,6.82944948]
[1752657899478,13.36274584,166.86,166.84,5.9934]
[1752657899672,13.36274584,166.86,166.85,6.82944948]
[1752657899876,16.7467817,166.9,166.85,6.82944948]
[1752657900072,5.9922,166.88,166.85,6.82944948]
[1752657900280,16.7467817,166.9,166.85,12.82244948]
[1752657900479,13.37392267,166.87,166.85,12.82244948]
[1752657901476,13.37392267,166.86,166.85,12.82244948]
[1752657901879,16.7467817,166.92,166.85,12.82944948]
[1752657902182,16.7467817,166.94,166.91,6.82944948]
[1752657902378,16.7467817,166.94,166.82,178.7]
[1752657902379,5.9898,166.94,166.82,178.7]
[1752657902681,5.9898,166.94,166.92,6.82944948]
[1752657903079,16.7467817,166.95,166.92,4.10585225]
[1752657903280,16.7467817,166.95,166.88,4.10585225]
[1752657903483,16.7467817,166.95,166.92,4.10585225]
[1752657903682,4.10585225,166.95,166.86,4.10585225]
[1752657903878,16.73107165,166.91,166.85,4.10585225]
[1752657904079,16.73107165,166.9,166.85,10.09875225]
[1752657904582,5.9918,166.89,166.85,10.09875225]
[1752657904982,5.9918,166.89,166.85,12.84113985]
[1752657905477,16.73107165,166.89,166.87,6.84823985]
[1752657905677,16.73107165,166.91,166.87,6.84823985]
[1752657905884,16.73107165,166.93,166.82,178.64]
[1752657906085,16.73107165,166.93,166.9,12.83933985]
[1752657906283,16.73107165,166.93,166.92,6.84823985]
[1752657906488,16.73107165,166.94,166.92,6.84823985]
[1752657906685,16.73107165,166.95,166.92,12.83853985]
[1752657906988,16.73107165,166.95,166.92,6.84823985]
[1752657907284,23.679385,167.0,166.9,6.84823985]
[1752657907285,16.73107165,166.93,166.9,6.84823985]
[1752657907487,16.73107165,166.94,166.92,6.84823985]
[1752657907787,16.73107165,166.95,166.92,6.84823985]
[1752657908282,16.73107165,166.95,166.92,1.60465443]
[1752657908476,16.73107165,166.94,166.92,1.60465443]
[1752657908986,16.73107165,166.93,166.91,6.84823985]
[1752657909284,16.73107165,166.92,166.91,6.84823985]
[1752657909986,16.73107165,166.92,166.9,6.84823985]
[1752657910387,16.73107165,166.92,166.9,12.83943985]
[1752657910588,16.73107165,166.92,166.9,6.84823985]
[1752657911096,16.73107165,166.94,166.92,5.99]
[1752657911387,16.73107165,166.94,166.93,6.84823985]
[1752657912591,16.73107165,166.94,166.92,6.84823985]
[1752657913487,23.679385,166.98,166.91,6.84823985]
[1752657913488,16.73107165,166.93,166.91,6.84823985]
[1752657913688,23.679385,167.0,166.91,6.84823985]
[1752657913888,23.679385,167.0,166.96,6.84823985]
[1752657914087,23.679385,167.05,166.96,6.84823985]
[1752657914285,23.679385,167.05,166.98,6.84823985]
[1752657914487,5.9869,167.01,166.98,6.84823985]
[1752657914692,23.679385,167.05,166.97,6.84823985]
[1752657915090,5.9874,167.0,166.97,6.84823985]
[1752657915693,30.52762485,167.06,166.97,6.84823985]
[1752657916293,23.679385,167.06,166.97,6.84823985]
[1752657916495,30.52762485,167.06,166.97,6.84823985]
[1752657916893,5.9875,166.99,166.97,6.84823985]
[1752657917393,30.52762485,167.06,166.97,6.84823985]
[1752657917595,5.9874,167.0,166.97,6.84823985]
[1752657918997,5.9874,167.0,166.96,5.9884]
[1752657919294,5.9874,167.0,166.97,6.84823985]
[1752657920499,5.9869,167.01,166.97,12.83643985]
[1752657921200,5.9873,167.0,166.97,6.84823985]
[1752657921788,18.81813985,167.07,166.97,6.84823985]
[1752657921992,6.84823985,167.06,166.97,6.84823985]
[1752657922194,11.9705,167.06,166.89,206.79221502]
[1752657922495,6.84823985,167.01,166.92,6.84823985]
[1752657922697,16.71527844,166.98,166.9,184.1504]
[1752657922895,16.71527844,166.98,166.9,178.16]
[1752657923296,5.9901,166.92,166.9,178.16]
[1752657923503,16.71527844,166.96,166.9,178.16]
[1752657923899,5.9894,166.94,166.9,184.1507]
[1752657924101,22.70467844,166.94,166.9,184.1507]
[1752657924301,22.70467844,166.94,166.9,142.76492494]
[1752657924609,22.70527844,166.93,166.9,142.76492494]
[1752657925199,22.70467844,166.94,166.9,142.76492494]
[1752657925401,16.71527844,166.95,166.9,142.76492494]
[1752657925695,5.989,166.95,166.91,5.9903]
[1752657926094,5.989,166.95,166.9,148.75562494]
[1752657926293,5.989,166.95,166.9,142.76492494]
[1752657926494,5.989,166.95,166.89,213.64045487]
[1752657926695,5.9893,166.94,166.9,178.08]
[1752657926905,16.71527844,166.95,166.9,178.08]
[1752657927101,5.9898,166.93,166.89,384.85221502]
[1752657927397,16.71527844,166.95,166.89,384.85221502]
[1752657927602,5.9892,166.95,166.89,397.69135487]
[1752657927904,16.71527844,166.96,166.91,6.84823985]
[1752657928407,16.71527844,166.98,166.93,6.84823985]
[1752657928600,16.71527844,166.99,166.94,178.36]
[1752657928797,5.9882,166.97,166.94,178.36]
[1752657929304,22.70327844,166.98,166.94,178.36]
[1752657929506,16.71527844,166.99,166.94,178.36]
[1752657929802,16.71527844,167.01,166.97,12.83643985]
[1752657930202,16.71527844,167.01,166.99,6.84823985]
[1752657930400,16.71527844,167.02,166.99,185.16823985]
[1752657930601,16.71527844,167.04,167.01,6.84823985]
[1752657930804,23.679385,167.09,167.01,6.84823985]
[1752657930805,16.71527844,167.05,167.01,12.83483985]
[1752657931003,16.71527844,167.06,167.03,6.84823985]
[1752657931202,16.71527844,167.08,167.05,6.84823985]
[1752657931407,16.71527844,167.1,167.03,6.84823985]
[1752657931606,16.71527844,167.1,167.04,178.3]
[1752657931906,5.9851,167.06,167.04,178.3]
[1752657932102,16.71527844,167.1,167.04,178.3]
[1752657932807,16.71527844,167.1,167.05,6.84823985]
[1752657933105,16.71527844,167.09,167.0,6.84823985]
[1752657933405,16.71527844,167.08,167.01,178.44]
[1752657933610,5.9866,167.02,167.01,178.44]
[1752657934006,6.84823985,167.07,166.96,517.56]
[1752657934207,6.84823985,167.05,166.97,178.4]
[1752657934408,23.56351829,167.05,166.97,178.4]
[1752657934607,5.9878,166.99,166.97,178.4]
[1752657935105,16.71527844,167.05,166.97,178.4]
[1752657935410,6.84823985,167.07,166.97,178.4]
[1752657935411,16.71527844,167.07,166.98,6.84823985]
[1752657935605,16.71527844,167.08,167.0,6.84823985]
[1752657936503,16.71527844,167.09,167.0,6.84823985]
[1752657937106,16.71527844,167.08,167.0,6.84823985]
[1752657937308,16.71527844,167.08,167.0,185.12823985]
[1752657937904,16.71527844,167.08,167.0,6.84823985]
[1752657938416,6.84823985,167.06,166.97,185.06823985]
[1752657938813,5.987,167.01,166.97,191.05633985]
[1752657940216,5.9872,167.0,166.97,185.06823985]
[1752657940413,6.84823985,167.04,166.96,517.56]
[1752657940611,6.84823985,167.02,166.93,178.12]
[1752657941118,23.56351829,167.02,166.93,178.12]
[1752657941316,5.9885,166.97,166.94,6.84823985]
[1752657942514,16.71527844,167.03,166.96,6.84823985]
[1752657942818,16.71527844,167.04,166.97,178.1]
[1752657943018,6.84823985,167.05,166.95,6.84823985]
[1752657943019,5.9877,166.99,166.96,178.1]
[1752657943618,5.9879,166.98,166.96,178.1]
[1752657943819,16.71527844,167.02,166.96,178.1]
[1752657944518,16.71527844,167.0,166.94,6.84823985]
[1752657944821,5.9882,166.98,166.94,12.83733985]
[1752657945121,16.71527844,167.02,166.96,6.84823985]
[1752657945321,5.9874,167.0,166.96,12.83663985]
[1752657945520,5.9874,167.0,166.97,6.84823985]
[1752657947621,16.71527844,167.01,166.93,178.24]
[1752657947822,16.71527844,167.0,166.97,6.84823985]
[1752657948024,16.71527844,167.01,166.97,6.84823985]
[1752657948420,16.71527844,167.03,166.99,6.84823985]
[1752657948820,16.71527844,167.03,167.01,6.84823985]
[1752657949127,529.4063,167.12,167.01,6.84823985]
[1752657949128,16.71527844,167.05,167.01,6.84823985]
[1752657949327,22.70047844,167.06,167.03,6.84823985]
[1752657949720,16.71527844,167.06,167.05,6.84823985]
[1752657949916,22.69987844,167.08,167.05,6.84823985]
[1752657950935,5.9846,167.08,167.05,6.84823985]
[1752657951929,22.69937844,167.09,167.05,6.84823985]
[1752657952131,16.71527844,167.09,167.07,6.84823985]
[1752657952533,16.71527844,167.1,167.07,6.84823985]
[1752657952836,16.71527844,167.1,167.0,6.84823985]
[1752657952837,16.71527844,167.1,167.09,6.84823985]
[1752657953137,16.71527844,167.14,167.09,12.83183985]
[1752657953337,40.39466344,167.15,167.11,6.84823985]
[1752657953635,5.9827,167.13,167.11,6.84823985]
[1752657955232,5.9828,167.12,167.11,6.84823985]
[1752657955442,16.71527844,167.16,167.08,6.84823985]
[1752657955638,16.71527844,167.14,167.08,6.84823985]
[1752657955936,5.9839,167.09,167.08,6.84823985]
[1752657957834,16.71527844,167.14,167.04,5.9856]
[1752657958038,16.71527844,167.14,167.06,6.84823985]
[1752657958232,16.71527844,167.15,167.06,6.84823985]
[1752657958537,5.9843,167.08,167.06,6.84823985]
[1752657958737,16.71527844,167.14,167.06,6.84823985]
[1752657959244,5.9838,167.1,167.06,6.84823985]
[1752657959439,5.9838,167.1,167.08,6.84823985]
[1752657959640,16.71527844,167.16,167.08,6.84823985]
[1752657959837,5.9829,167.12,167.1,6.84823985]
[1752657960942,16.71527844,167.16,167.1,6.84823985]
[1752657961141,16.71527844,167.18,167.1,6.84823985]
[1752657961635,5.9826,167.13,167.1,6.84823985]
[1752657963041,23.56351829,167.18,167.1,6.84823985]
[1752657963242,16.71527844,167.17,167.08,6.84823985]
[1752657963444,16.71527844,167.16,167.08,6.84823985]
[1752657963638,5.9839,167.1,167.08,6.84823985]
[1752657964442,5.9839,167.1,167.07,6.84823985]
[1752657964639,5.9839,167.09,167.0,6.84823985]
[1752657964838,16.71527844,167.15,167.06,6.84823985]
[1752657965041,6.84823985,167.15,167.06,6.84823985]
[1752657965241,6.84823985,167.15,167.04,5.9854]
[1752657965543,6.84823985,167.15,167.05,6.84823985]
[1752657965741,190.181,167.19,167.03,6.84823985]
[1752657965742,6.84823985,167.13,167.03,6.84823985]
[1752657966042,6.84823985,167.13,166.98,517.48]
[1752657966043,6.84823985,167.13,167.04,6.84823985]
[1752657966239,6.84823985,167.15,167.06,6.84823985]
[1752657966944,5.9842,167.09,167.06,6.84823985]
[1752657967135,6.84823985,167.15,167.06,6.84823985]
[1752657967842,5.9841,167.09,167.06,12.83313985]
[1752657968744,6.84823985,167.15,167.01,177.7]
[1752657968944,6.84823985,167.15,167.04,6.84823985]
[1752657969243,5.9845,167.08,167.05,5.9852]
[1752657969448,6.84823985,167.15,167.01,177.7]
[1752657969640,6.84823985,167.15,167.05,6.84823985]
[1752657970145,5.9846,167.08,167.05,12.83363985]
[1752657971246,5.9846,167.08,167.05,6.84823985]
[1752657971550,11.9626,167.17,167.07,6.84823985]
[1752657971747,18.81083985,167.17,167.07,12.83283985]
[1752657971947,18.81083985,167.17,167.07,6.84823985]
[1752657973749,5.984,167.09,167.07,6.84823985]
[1752657974842,6.84823985,167.15,167.0,6.84823985]
[1752657975049,6.84823985,167.15,167.05,6.84823985]
[1752657975350,5.9849,167.07,167.05,6.84823985]
[1752657975846,16.70772516,167.1,166.99,5.9874]
[1752657976151,16.70772516,167.1,167.0,6.84823985]
[1752657976152,16.70772516,167.07,167.0,6.84823985]
[1752657976347,5.9863,167.03,167.0,6.84823985]
[1752657976651,16.70772516,167.07,167.0,6.84823985]
[1752657976951,16.70772516,167.07,167.02,6.84823985]
[1752657977151,16.70772516,167.08,167.02,6.84823985]
[1752657977453,16.70772516,167.09,167.02,6.84823985]
[1752657978352,16.70772516,167.09,166.98,517.48]
[1752657978552,16.70772516,167.09,167.02,6.84823985]
[1752657979455,5.9856,167.05,167.02,6.84823985]